[Event "December 19 Early 2023"]
[Site "https://www.chess.com"]
[Date "2023.12.19"]
[Round "1"]
[White "Veleshnja, Zino"]
[Black "Durarbayli, Vasif"]
[Result "0-1"]
[Board "70"]
[TimeControl "180+1"]
[WhiteFideId "4701313"]
[BlackFideId "13402935"]
[WhiteElo "2216"]
[BlackElo "2551"]
[WhiteTeam "ALB"]
[BlackTeam "AZE"]
[WhiteClock "0:01:14"]
[BlackClock "0:01:58"]

1. d4 {[%clk 0:02:58]}  Nf6 {[%clk 0:02:59]} 2. c4 {[%clk 0:02:59]}  e6 {[%clk 0:03:00]} 3. Nc3 {[%clk 0:02:59]}  Bb4 {[%clk 0:02:59]} 4. g3 {[%clk 0:02:59]}  c5 {[%clk 0:02:57]} 5. Nf3 {[%clk 0:02:57]}  cxd4 {[%clk 0:02:58]} 6. Nxd4 {[%clk 0:02:57]}  Ne4 {[%clk 0:02:58]} 7. Bd2 {[%clk 0:02:51]}  Nxc3 {[%clk 0:02:50]} 8. bxc3 {[%clk 0:02:48]}  Be7 {[%clk 0:02:49]} 9. Bg2 {[%clk 0:02:48]}  a6 {[%clk 0:02:49]} 10. O-O {[%clk 0:02:48]}  Qc7 {[%clk 0:02:50]} 11. Rb1 {[%clk 0:02:46]}  O-O {[%clk 0:02:47]} 12. Qb3 {[%clk 0:02:45]}  Nc6 {[%clk 0:02:38]} 13. Bf4 {[%clk 0:02:36]}  e5 {[%clk 0:02:35]} 14. Nxc6 {[%clk 0:02:36]}  dxc6 {[%clk 0:02:24]} 15. Be3 {[%clk 0:02:35]}  b5 {[%clk 0:02:21]} 16. cxb5 {[%clk 0:02:34]}  axb5 {[%clk 0:02:22]} 17. Ra1 {[%clk 0:01:51]}  Be6 {[%clk 0:02:16]} 18. Qc2 {[%clk 0:01:51]}  Ra4 {[%clk 0:02:16]} 19. Rfd1 {[%clk 0:01:43]}  Rfa8 {[%clk 0:02:15]} 20. h3 {[%clk 0:01:35]}  h6 {[%clk 0:02:03]} 21. Kh2 {[%clk 0:01:23]}  Bxa2 {[%clk 0:02:02]} 22. Qf5 {[%clk 0:01:20]}  Be6 {[%clk 0:02:01]} 23. Qf3 {[%clk 0:01:14]}  Rxa1 {[%clk 0:01:58]} 0-1

[Event "December 19 Early 2023"]
[Site "https://www.chess.com"]
[Date "2023.12.19"]
[Round "1"]
[White "Alexandre, Anne Shopie Elizabeth"]
[Black "Kovalyov, Eduard"]
[Result "1/2-1/2"]
[Board "73"]
[TimeControl "180+1"]
[WhiteFideId "11902418"]
[BlackFideId "14118033"]
[WhiteElo "2830"]
[BlackElo "2300"]
[WhiteTeam "HAI"]
[BlackTeam "UKR"]
[WhiteClock "0:00:04"]
[BlackClock "0:00:05"]

1. Nf3 {[%clk 0:03:00]}  d5 {[%clk 0:02:59]} 2. g3 {[%clk 0:03:00]}  g6 {[%clk 0:02:59]} 3. Bg2 {[%clk 0:02:59]}  Bg7 {[%clk 0:03:00]} 4. c4 {[%clk 0:03:00]}  dxc4 {[%clk 0:02:58]} 5. Qa4+ {[%clk 0:03:00]}  Nc6 {[%clk 0:02:56]} 6. Qxc4 {[%clk 0:02:59]}  e5 {[%clk 0:02:56]} 7. d3 {[%clk 0:02:58]}  Nge7 {[%clk 0:02:56]} 8. Ng5 {[%clk 0:02:44]}  O-O {[%clk 0:02:51]} 9. O-O {[%clk 0:02:42]}  h6 {[%clk 0:02:48]} 10. Ne4 {[%clk 0:02:39]}  Nd4 {[%clk 0:02:43]} 11. Nbc3 {[%clk 0:02:37]}  Be6 {[%clk 0:02:35]} 12. Qa4 {[%clk 0:02:37]}  Nd5 {[%clk 0:02:24]} 13. Qd1 {[%clk 0:02:36]}  b6 {[%clk 0:02:19]} 14. Bd2 {[%clk 0:02:29]}  c5 {[%clk 0:02:19]} 15. Nxd5 {[%clk 0:02:16]}  Bxd5 {[%clk 0:02:19]} 16. e3 {[%clk 0:02:16]}  Nc6 {[%clk 0:02:16]} 17. Qe2 {[%clk 0:02:04]}  f5 {[%clk 0:02:09]} 18. Nc3 {[%clk 0:02:04]}  Bxg2 {[%clk 0:02:09]} 19. Kxg2 {[%clk 0:02:05]}  Qd7 {[%clk 0:02:06]} 20. Rad1 {[%clk 0:02:01]}  Rad8 {[%clk 0:02:05]} 21. Bc1 {[%clk 0:02:02]}  Nb4 {[%clk 0:02:05]} 22. d4 {[%clk 0:02:00]}  exd4 {[%clk 0:01:56]} 23. exd4 {[%clk 0:01:59]}  cxd4 {[%clk 0:01:55]} 24. Qc4+ {[%clk 0:01:49]}  Nd5 {[%clk 0:01:50]} 25. Nb5 {[%clk 0:01:39]}  Kh7 {[%clk 0:01:48]} 26. Nxd4 {[%clk 0:01:38]}  f4 {[%clk 0:01:36]} 27. Nc6 {[%clk 0:01:27]}  f3+ {[%clk 0:01:29]} 28. Kh1 {[%clk 0:01:27]}  Qh3 {[%clk 0:01:16]} 29. Rg1 {[%clk 0:01:27]}  Rf5 {[%clk 0:01:02]} 30. Qh4 {[%clk 0:00:54]}  Qxh4 {[%clk 0:00:53]} 31. gxh4 {[%clk 0:00:55]}  Rd7 {[%clk 0:00:39]} 32. Rd3 {[%clk 0:00:54]}  Rdf7 {[%clk 0:00:34]} 33. Nd4 {[%clk 0:00:48]}  Rh5 {[%clk 0:00:26]} 34. Ne6 {[%clk 0:00:45]}  Bf6 {[%clk 0:00:17]} 35. Rxf3 {[%clk 0:00:40]}  Rxh4 {[%clk 0:00:15]} 36. a3 {[%clk 0:00:36]}  g5 {[%clk 0:00:15]} 37. Rd3 {[%clk 0:00:35]}  Nf4 {[%clk 0:00:12]} 38. Bxf4 {[%clk 0:00:27]}  gxf4 {[%clk 0:00:13]} 39. b4 {[%clk 0:00:25]}  Be5 {[%clk 0:00:11]} 40. f3 {[%clk 0:00:18]}  Rh5 {[%clk 0:00:10]} 41. Rd5 {[%clk 0:00:18]}  Rhf5 {[%clk 0:00:09]} 42. Re1 {[%clk 0:00:14]}  Bb2 {[%clk 0:00:09]} 43. Rxf5 {[%clk 0:00:10]}  Rxf5 {[%clk 0:00:10]} 44. a4 {[%clk 0:00:11]}  Bc3 {[%clk 0:00:08]} 45. Re4 {[%clk 0:00:11]}  a5 {[%clk 0:00:07]} 46. b5 {[%clk 0:00:11]}  Bd2 {[%clk 0:00:06]} 47. Rd4 {[%clk 0:00:10]}  Be3 {[%clk 0:00:06]} 48. Re4 {[%clk 0:00:09]}  Kg6 {[%clk 0:00:06]} 49. Kg2 {[%clk 0:00:09]}  Kf6 {[%clk 0:00:05]} 50. Nd4 {[%clk 0:00:09]}  Rg5+ {[%clk 0:00:05]} 51. Kf1 {[%clk 0:00:09]}  Rh5 {[%clk 0:00:04]} 52. Kg2 {[%clk 0:00:04]}  Rg5+ {[%clk 0:00:04]} 53. Kh3 {[%clk 0:00:04]}  Rh5+ {[%clk 0:00:04]} 54. Kg2 {[%clk 0:00:04]}  Rg5+ {[%clk 0:00:05]} 1/2-1/2

[Event "December 19 Early 2023"]
[Site "https://www.chess.com"]
[Date "2023.12.19"]
[Round "1"]
[White "Kashtanov, Ruslan"]
[Black "Vakhlamov, Igor L."]
[Result "1-0"]
[Board "74"]
[TimeControl "180+1"]
[WhiteFideId "4124871"]
[BlackFideId "24126748"]
[WhiteElo "2263"]
[BlackElo "2407"]
[WhiteTeam "RUS"]
[BlackTeam "RUS"]
[WhiteClock "0:00:18"]
[BlackClock "0:00:24"]

1. e4 {[%clk 0:03:00]}  c5 {[%clk 0:02:58]} 2. Nf3 {[%clk 0:03:00]}  e6 {[%clk 0:02:58]} 3. d4 {[%clk 0:03:00]}  cxd4 {[%clk 0:02:59]} 4. Nxd4 {[%clk 0:03:00]}  Nf6 {[%clk 0:03:00]} 5. Nc3 {[%clk 0:02:59]}  Nc6 {[%clk 0:03:00]} 6. Ndb5 {[%clk 0:02:53]}  Bc5 {[%clk 0:03:00]} 7. Bf4 {[%clk 0:02:50]}  O-O {[%clk 0:02:59]} 8. Bc7 {[%clk 0:02:49]}  Qe7 {[%clk 0:03:00]} 9. Bd6 {[%clk 0:02:50]}  Bxd6 {[%clk 0:03:01]} 10. Qxd6 {[%clk 0:02:49]}  Qd8 {[%clk 0:03:01]} 11. O-O-O {[%clk 0:02:37]}  a6 {[%clk 0:03:01]} 12. Nd4 {[%clk 0:02:36]}  Ne7 {[%clk 0:03:01]} 13. h4 {[%clk 0:02:33]}  Ne8 {[%clk 0:03:01]} 14. Qg3 {[%clk 0:02:30]}  b5 {[%clk 0:03:01]} 15. a3 {[%clk 0:02:22]}  d6 {[%clk 0:02:58]} 16. h5 {[%clk 0:02:21]}  h6 {[%clk 0:02:57]} 17. Qe3 {[%clk 0:01:55]}  e5 {[%clk 0:02:51]} 18. Nf3 {[%clk 0:01:43]}  Qc7 {[%clk 0:02:36]} 19. Be2 {[%clk 0:01:38]}  Be6 {[%clk 0:02:35]} 20. g4 {[%clk 0:01:35]}  Bxg4 {[%clk 0:02:31]} 21. Rhg1 {[%clk 0:01:22]}  Nf6 {[%clk 0:01:50]} 22. Nh4 {[%clk 0:01:12]}  Bxe2 {[%clk 0:01:43]} 23. Nxe2 {[%clk 0:01:11]}  Kh7 {[%clk 0:01:28]} 24. Ng3 {[%clk 0:01:07]}  Rac8 {[%clk 0:01:23]} 25. Rd2 {[%clk 0:01:05]}  Qc5 {[%clk 0:01:16]} 26. Qf3 {[%clk 0:01:02]}  Rg8 {[%clk 0:01:07]} 27. Ngf5 {[%clk 0:00:55]}  Nxf5 {[%clk 0:01:07]} 28. Nxf5 {[%clk 0:00:45]}  Rcd8 {[%clk 0:00:59]} 29. Nxh6 {[%clk 0:00:19]}  Kxh6 {[%clk 0:00:23]} 30. Qf5 {[%clk 0:00:19]}  Nxh5 {[%clk 0:00:24]} 31. Qg5+ {[%clk 0:00:17]}  Kh7 {[%clk 0:00:24]} 32. Qxh5# {[%clk 0:00:18]} 1-0

[Event "December 19 Early 2023"]
[Site "https://www.chess.com"]
[Date "2023.12.19"]
[Round "1"]
[White "Sychev, Klementy"]
[Black "Herman, Daniel"]
[Result "1-0"]
[Board "75"]
[TimeControl "180+1"]
[WhiteFideId "4114060"]
[BlackFideId "30935008"]
[WhiteElo "2583"]
[BlackElo "1897"]
[WhiteTeam "FID"]
[BlackTeam "USA"]
[WhiteClock "0:00:07"]
[BlackClock "0:00:03"]

1. e4 {[%clk 0:02:57]}  g6 {[%clk 0:02:59]} 2. d4 {[%clk 0:02:57]}  Bg7 {[%clk 0:03:00]} 3. Nc3 {[%clk 0:02:58]}  d6 {[%clk 0:03:00]} 4. Be3 {[%clk 0:02:58]}  a6 {[%clk 0:03:01]} 5. g4 {[%clk 0:02:59]}  b5 {[%clk 0:02:59]} 6. Bg2 {[%clk 0:02:59]}  Bb7 {[%clk 0:02:55]} 7. h4 {[%clk 0:02:59]}  h6 {[%clk 0:02:43]} 8. g5 {[%clk 0:02:58]}  hxg5 {[%clk 0:02:40]} 9. h5 {[%clk 0:02:58]}  gxh5 {[%clk 0:02:24]} 10. Rxh5 {[%clk 0:02:57]}  Nf6 {[%clk 0:02:25]} 11. Rxh8+ {[%clk 0:02:13]}  Bxh8 {[%clk 0:02:25]} 12. Bxg5 {[%clk 0:02:13]}  b4 {[%clk 0:02:08]} 13. Nd5 {[%clk 0:02:12]}  Bxd5 {[%clk 0:01:54]} 14. exd5 {[%clk 0:02:12]}  Nbd7 {[%clk 0:01:50]} 15. Ne2 {[%clk 0:02:01]}  Qb8 {[%clk 0:01:48]} 16. Nf4 {[%clk 0:01:49]}  Qb5 {[%clk 0:01:46]} 17. Qd2 {[%clk 0:01:35]}  O-O-O {[%clk 0:01:42]} 18. a3 {[%clk 0:01:20]}  Rg8 {[%clk 0:01:32]} 19. Bxf6 {[%clk 0:01:19]}  Bxf6 {[%clk 0:01:29]} 20. axb4 {[%clk 0:01:13]}  Bg5 {[%clk 0:01:25]} 21. Bf1 {[%clk 0:00:59]}  Bxf4 {[%clk 0:01:20]} 22. Qxf4 {[%clk 0:01:00]}  Qxb4+ {[%clk 0:01:18]} 23. Qd2 {[%clk 0:00:49]}  Qxd2+ {[%clk 0:01:11]} 24. Kxd2 {[%clk 0:00:48]}  Nb6 {[%clk 0:01:11]} 25. Bxa6+ {[%clk 0:00:47]}  Kd8 {[%clk 0:01:08]} 26. c4 {[%clk 0:00:39]}  Rg4 {[%clk 0:01:02]} 27. Kd3 {[%clk 0:00:32]}  Rh4 {[%clk 0:01:00]} 28. Bb5 {[%clk 0:00:28]}  e5 {[%clk 0:00:52]} 29. dxe5 {[%clk 0:00:24]}  dxe5 {[%clk 0:00:51]} 30. Re1 {[%clk 0:00:20]}  f6 {[%clk 0:00:46]} 31. Rg1 {[%clk 0:00:20]}  Rd4+ {[%clk 0:00:41]} 32. Kc3 {[%clk 0:00:19]}  Rf4 {[%clk 0:00:42]} 33. Rg2 {[%clk 0:00:16]}  Ke7 {[%clk 0:00:40]} 34. b4 {[%clk 0:00:14]}  Rf3+ {[%clk 0:00:37]} 35. Kc2 {[%clk 0:00:14]}  f5 {[%clk 0:00:33]} 36. Rg7+ {[%clk 0:00:13]}  Kf6 {[%clk 0:00:26]} 37. Rxc7 {[%clk 0:00:13]}  Rxf2+ {[%clk 0:00:26]} 38. Kd1 {[%clk 0:00:13]}  e4 {[%clk 0:00:17]} 39. Rc6+ {[%clk 0:00:13]}  Ke5 {[%clk 0:00:18]} 40. Rxb6 {[%clk 0:00:13]}  f4 {[%clk 0:00:19]} 41. d6 {[%clk 0:00:13]}  e3 {[%clk 0:00:17]} 42. d7 {[%clk 0:00:08]}  Rd2+ {[%clk 0:00:17]} 43. Ke1 {[%clk 0:00:08]}  f3 {[%clk 0:00:17]} 44. c5 {[%clk 0:00:08]}  Rh2 {[%clk 0:00:09]} 45. d8=Q {[%clk 0:00:06]}  Rh1+ {[%clk 0:00:02]} 46. Bf1 {[%clk 0:00:07]}  e2 {[%clk 0:00:03]} 47. Qe7+ {[%clk 0:00:06]}  Kd4 {[%clk 0:00:04]} 48. Rd6+ {[%clk 0:00:06]}  Kc3 {[%clk 0:00:03]} 49. Qe3+ {[%clk 0:00:06]}  Kxb4 {[%clk 0:00:03]} 50. Qd4+ {[%clk 0:00:06]}  Ka5 {[%clk 0:00:03]} 51. Qa1+ {[%clk 0:00:05]}  Kb5 {[%clk 0:00:03]} 52. Qb2+ {[%clk 0:00:05]}  Kxc5 {[%clk 0:00:03]} 53. Qd4+ {[%clk 0:00:05]}  Kb5 {[%clk 0:00:03]} 54. Rb6+ {[%clk 0:00:06]}  Ka5 {[%clk 0:00:03]} 55. Qb4# {[%clk 0:00:07]} 1-0

[Event "December 19 Early 2023"]
[Site "https://www.chess.com"]
[Date "2023.12.19"]
[Round "1"]
[White "Klimkowski, Jan"]
[Black "Spichkin, Alexander"]
[Result "1-0"]
[Board "77"]
[TimeControl "180+1"]
[WhiteFideId "21856222"]
[BlackFideId "4144074"]
[WhiteElo "2324"]
[BlackElo "1955"]
[WhiteTeam "POL"]
[BlackTeam "RUS"]
[WhiteClock "0:00:43"]
[BlackClock "0:00:00"]

1. e4 {[%clk 0:03:00]}  e5 {[%clk 0:02:58]} 2. Nf3 {[%clk 0:03:01]}  d5 {[%clk 0:02:58]} 3. Nxe5 {[%clk 0:02:45]}  Bd6 {[%clk 0:02:56]} 4. d4 {[%clk 0:02:44]}  dxe4 {[%clk 0:02:56]} 5. Bf4 {[%clk 0:02:35]}  Nf6 {[%clk 0:02:49]} 6. Nc3 {[%clk 0:02:29]}  O-O {[%clk 0:02:48]} 7. Bc4 {[%clk 0:02:23]}  a6 {[%clk 0:02:32]} 8. a4 {[%clk 0:02:22]}  b6 {[%clk 0:02:25]} 9. O-O {[%clk 0:02:18]}  Bb7 {[%clk 0:02:25]} 10. Bg5 {[%clk 0:02:15]}  Be7 {[%clk 0:02:18]} 11. Re1 {[%clk 0:02:10]}  Nc6 {[%clk 0:02:13]} 12. Nxc6 {[%clk 0:02:03]}  Bxc6 {[%clk 0:02:12]} 13. d5 {[%clk 0:02:01]}  Bxd5 {[%clk 0:01:55]} 14. Nxd5 {[%clk 0:01:53]}  Nxd5 {[%clk 0:01:54]} 15. Bxd5 {[%clk 0:01:54]}  Bxg5 {[%clk 0:01:54]} 16. Bxa8 {[%clk 0:01:55]}  Qxa8 {[%clk 0:01:54]} 17. Qg4 {[%clk 0:01:55]}  Bf6 {[%clk 0:01:48]} 18. Qxe4 {[%clk 0:01:53]}  Bxb2 {[%clk 0:01:42]} 19. Rad1 {[%clk 0:01:53]}  Qc8 {[%clk 0:01:36]} 20. Qc6 {[%clk 0:01:50]}  Ba3 {[%clk 0:01:25]} 21. Re4 {[%clk 0:01:48]}  Bd6 {[%clk 0:01:24]} 22. g3 {[%clk 0:01:47]}  Qf5 {[%clk 0:01:21]} 23. Re8 {[%clk 0:01:44]}  g6 {[%clk 0:01:19]} 24. Rde1 {[%clk 0:01:39]}  Qa5 {[%clk 0:01:14]} 25. R1e4 {[%clk 0:01:36]}  Qd2 {[%clk 0:01:06]} 26. h4 {[%clk 0:01:30]}  h5 {[%clk 0:01:04]} 27. Re2 {[%clk 0:01:27]}  Qd4 {[%clk 0:01:00]} 28. R8e4 {[%clk 0:01:26]}  Qd1+ {[%clk 0:00:57]} 29. Kg2 {[%clk 0:01:25]}  Qa1 {[%clk 0:00:55]} 30. Qc4 {[%clk 0:01:23]}  Qa3 {[%clk 0:00:53]} 31. Qxa6 {[%clk 0:01:21]}  Kg7 {[%clk 0:00:51]} 32. Re8 {[%clk 0:01:12]}  Qa2 {[%clk 0:00:43]} 33. Qb5 {[%clk 0:01:05]}  Rxe8 {[%clk 0:00:39]} 34. Qxe8 {[%clk 0:01:06]}  Qc4 {[%clk 0:00:37]} 35. Qe4 {[%clk 0:01:06]}  Qc3 {[%clk 0:00:33]} 36. Re3 {[%clk 0:01:06]}  Qa5 {[%clk 0:00:28]} 37. Qd4+ {[%clk 0:01:04]}  Kg8 {[%clk 0:00:23]} 38. Re8+ {[%clk 0:01:04]}  Bf8 {[%clk 0:00:23]} 39. Rc8 {[%clk 0:00:56]}  Qe1 {[%clk 0:00:10]} 40. Rxc7 {[%clk 0:00:47]}  Bg7 {[%clk 0:00:07]} 41. Qd5 {[%clk 0:00:47]}  Qe8 {[%clk 0:00:04]} 42. Rd7 {[%clk 0:00:48]}  Kh7 {[%clk 0:00:03]} 43. Qxf7 {[%clk 0:00:46]}  Qe5 {[%clk 0:00:03]} 44. Qxg7+ {[%clk 0:00:45]}  Qxg7 {[%clk 0:00:02]} 45. Rxg7+ {[%clk 0:00:46]}  Kxg7 {[%clk 0:00:02]} 46. Kf3 {[%clk 0:00:47]}  Kf6 {[%clk 0:00:03]} 47. Ke4 {[%clk 0:00:48]}  Ke6 {[%clk 0:00:02]} 48. f3 {[%clk 0:00:49]}  Kd6 {[%clk 0:00:02]} 49. Kd4 {[%clk 0:00:48]}  Ke6 {[%clk 0:00:01]} 50. c4 {[%clk 0:00:47]}  Kd6 {[%clk 0:00:00]} 51. g4 {[%clk 0:00:43]} 1-0

[Event "December 19 Early 2023"]
[Site "https://www.chess.com"]
[Date "2023.12.19"]
[Round "1"]
[White "Novak, Ratko"]
[Black "Finek, Vaclav"]
[Result "0-1"]
[Board "78"]
[TimeControl "180+1"]
[WhiteFideId "14511827"]
[BlackFideId "23718293"]
[WhiteElo "2036"]
[BlackElo "2309"]
[WhiteTeam "CRO"]
[BlackTeam "CZE"]
[WhiteClock "0:00:19"]
[BlackClock "0:00:56"]

1. d4 {[%clk 0:02:58]}  d5 {[%clk 0:02:58]} 2. c4 {[%clk 0:02:59]}  c6 {[%clk 0:02:58]} 3. cxd5 {[%clk 0:03:00]}  cxd5 {[%clk 0:02:58]} 4. Nc3 {[%clk 0:03:00]}  Nf6 {[%clk 0:02:57]} 5. f3 {[%clk 0:03:01]}  Nc6 {[%clk 0:02:57]} 6. e4 {[%clk 0:03:01]}  dxe4 {[%clk 0:02:50]} 7. d5 {[%clk 0:03:00]}  Ne5 {[%clk 0:02:48]} 8. fxe4 {[%clk 0:03:00]}  Bd7 {[%clk 0:02:44]} 9. Qd4 {[%clk 0:03:00]}  Ng6 {[%clk 0:02:26]} 10. e5 {[%clk 0:02:55]}  Ng8 {[%clk 0:02:22]} 11. Bd3 {[%clk 0:02:54]}  e6 {[%clk 0:02:20]} 12. d6 {[%clk 0:02:54]}  Qh4+ {[%clk 0:02:19]} 13. Qxh4 {[%clk 0:02:49]}  Nxh4 {[%clk 0:02:20]} 14. Be4 {[%clk 0:02:27]}  Bc6 {[%clk 0:02:15]} 15. Bxc6+ {[%clk 0:02:23]}  bxc6 {[%clk 0:02:16]} 16. g3 {[%clk 0:02:23]}  Ng6 {[%clk 0:02:15]} 17. Nf3 {[%clk 0:02:23]}  f6 {[%clk 0:02:13]} 18. Ne4 {[%clk 0:02:13]}  fxe5 {[%clk 0:02:08]} 19. Bg5 {[%clk 0:02:01]}  h6 {[%clk 0:02:04]} 20. O-O-O {[%clk 0:01:41]}  hxg5 {[%clk 0:01:58]} 21. d7+ {[%clk 0:01:41]}  Ke7 {[%clk 0:01:57]} 22. Nexg5 {[%clk 0:01:36]}  Rd8 {[%clk 0:01:50]} 23. Rhe1 {[%clk 0:01:31]}  Rxd7 {[%clk 0:01:40]} 24. Rxd7+ {[%clk 0:01:24]}  Kxd7 {[%clk 0:01:41]} 25. h4 {[%clk 0:01:25]}  Nf6 {[%clk 0:01:28]} 26. Nf7 {[%clk 0:01:23]}  Rh5 {[%clk 0:01:26]} 27. N3g5 {[%clk 0:01:14]}  e4 {[%clk 0:01:19]} 28. Nxe4 {[%clk 0:00:48]}  Nxe4 {[%clk 0:01:18]} 29. Rxe4 {[%clk 0:00:49]}  Rf5 {[%clk 0:01:14]} 30. Ng5 {[%clk 0:00:47]}  e5 {[%clk 0:01:13]} 31. a3 {[%clk 0:00:46]}  Bc5 {[%clk 0:01:11]} 32. b4 {[%clk 0:00:40]}  Bd4 {[%clk 0:01:10]} 33. Rg4 {[%clk 0:00:40]}  Ne7 {[%clk 0:01:08]} 34. Ne4 {[%clk 0:00:38]}  g6 {[%clk 0:01:07]} 35. Kc2 {[%clk 0:00:38]}  Ke6 {[%clk 0:01:05]} 36. Kd3 {[%clk 0:00:38]}  Kd5 {[%clk 0:01:04]} 37. Ng5 {[%clk 0:00:35]}  Nc8 {[%clk 0:01:02]} 38. Ne4 {[%clk 0:00:28]}  Rf3+ {[%clk 0:01:00]} 39. Kd2 {[%clk 0:00:28]}  Rxa3 {[%clk 0:00:58]} 40. Nf6+ {[%clk 0:00:28]}  Ke6 {[%clk 0:00:59]} 41. Rxg6 {[%clk 0:00:28]}  Kf5 {[%clk 0:00:59]} 42. h5 {[%clk 0:00:28]}  Ne7 {[%clk 0:00:59]} 43. g4+ {[%clk 0:00:28]}  Ke6 {[%clk 0:00:57]} 44. Rh6 {[%clk 0:00:19]}  Be3+ {[%clk 0:00:56]} 0-1

[Event "December 19 Early 2023"]
[Site "https://www.chess.com"]
[Date "2023.12.19"]
[Round "1"]
[White "Yanchenko, Roman"]
[Black "Perossa, Nicolas"]
[Result "1-0"]
[Board "79"]
[TimeControl "180+1"]
[WhiteFideId "4137329"]
[BlackFideId "2850520"]
[WhiteElo "2478"]
[BlackElo "1934"]
[WhiteTeam "RUS"]
[BlackTeam "ITA"]
[WhiteClock "0:01:17"]
[BlackClock "0:00:01"]

1. d4 {[%clk 0:03:00]}  d6 {[%clk 0:02:59]} 2. Nf3 {[%clk 0:03:00]}  Nf6 {[%clk 0:02:59]} 3. Bf4 {[%clk 0:03:01]}  Bf5 {[%clk 0:02:53]} 4. e3 {[%clk 0:03:01]}  h6 {[%clk 0:02:47]} 5. c4 {[%clk 0:03:00]}  Nbd7 {[%clk 0:02:42]} 6. Nc3 {[%clk 0:03:00]}  Nh5 {[%clk 0:02:35]} 7. Nh4 {[%clk 0:03:00]}  Nxf4 {[%clk 0:02:29]} 8. Nxf5 {[%clk 0:03:01]}  Ng6 {[%clk 0:02:22]} 9. d5 {[%clk 0:03:00]}  e6 {[%clk 0:02:12]} 10. dxe6 {[%clk 0:03:00]}  fxe6 {[%clk 0:02:13]} 11. Nd4 {[%clk 0:02:54]}  Nc5 {[%clk 0:01:25]} 12. b4 {[%clk 0:02:48]}  e5 {[%clk 0:01:24]} 13. bxc5 {[%clk 0:02:23]}  exd4 {[%clk 0:01:23]} 14. Bd3 {[%clk 0:02:23]}  Qg5 {[%clk 0:01:09]} 15. h4 {[%clk 0:02:23]}  Nxh4 {[%clk 0:00:54]} 16. Ne4 {[%clk 0:02:23]}  Nxg2+ {[%clk 0:00:24]} 17. Kf1 {[%clk 0:02:22]}  Nxe3+ {[%clk 0:00:16]} 18. fxe3 {[%clk 0:02:23]}  Qxe3 {[%clk 0:00:14]} 19. Qh5+ {[%clk 0:02:13]}  Kd8 {[%clk 0:00:14]} 20. Rh3 {[%clk 0:02:12]}  Qf4+ {[%clk 0:00:08]} 21. Rf3 {[%clk 0:02:11]}  Qe5 {[%clk 0:00:08]} 22. Qf7 {[%clk 0:02:07]}  Be7 {[%clk 0:00:07]} 23. cxd6 {[%clk 0:02:08]}  cxd6 {[%clk 0:00:06]} 24. Re1 {[%clk 0:01:43]}  Rf8 {[%clk 0:00:05]} 25. Qxf8+ {[%clk 0:01:43]}  Bxf8 {[%clk 0:00:06]} 26. Rxf8+ {[%clk 0:01:44]}  Kc7 {[%clk 0:00:06]} 27. Rxa8 {[%clk 0:01:44]}  Qf4+ {[%clk 0:00:06]} 28. Nf2 {[%clk 0:01:44]}  h5 {[%clk 0:00:03]} 29. Re7+ {[%clk 0:01:42]}  Kb6 {[%clk 0:00:03]} 30. Rb8 {[%clk 0:01:38]}  Ka5 {[%clk 0:00:02]} 31. Rexb7 {[%clk 0:01:37]}  Qc1+ {[%clk 0:00:02]} 32. Ke2 {[%clk 0:01:37]}  Qe3+ {[%clk 0:00:02]} 33. Kd1 {[%clk 0:01:33]}  a6 {[%clk 0:00:03]} 34. Rb3 {[%clk 0:01:31]}  Ka4 {[%clk 0:00:01]} 35. Bc2 {[%clk 0:01:23]}  Qxf2 {[%clk 0:00:01]} 36. Rd3+ {[%clk 0:01:17]}  Ka5 {[%clk 0:00:01]} 37. Ra3# {[%clk 0:01:17]} 1-0

[Event "December 19 Early 2023"]
[Site "https://www.chess.com"]
[Date "2023.12.19"]
[Round "1"]
[White "Mizzi, Jack"]
[Black "Dragun, Kamil"]
[Result "0-1"]
[Board "80"]
[TimeControl "180+1"]
[WhiteFideId "5602521"]
[BlackFideId "1134167"]
[WhiteElo "2127"]
[BlackElo "2551"]
[WhiteTeam "MLT"]
[BlackTeam "POL"]
[WhiteClock "0:00:00"]
[BlackClock "0:00:54"]

1. d4 {[%clk 0:03:00]}  d5 {[%clk 0:02:59]} 2. c4 {[%clk 0:03:00]}  c6 {[%clk 0:02:59]} 3. Nf3 {[%clk 0:02:59]}  Nf6 {[%clk 0:02:58]} 4. Nbd2 {[%clk 0:02:59]}  Bf5 {[%clk 0:02:58]} 5. Nh4 {[%clk 0:02:59]}  Be4 {[%clk 0:02:57]} 6. e3 {[%clk 0:02:58]}  e6 {[%clk 0:02:53]} 7. Be2 {[%clk 0:02:58]}  h6 {[%clk 0:02:51]} 8. O-O {[%clk 0:02:56]}  Bh7 {[%clk 0:02:50]} 9. b3 {[%clk 0:02:49]}  Nbd7 {[%clk 0:02:50]} 10. Bb2 {[%clk 0:02:48]}  Bd6 {[%clk 0:02:49]} 11. Rc1 {[%clk 0:02:45]}  O-O {[%clk 0:02:47]} 12. f4 {[%clk 0:02:38]}  c5 {[%clk 0:02:40]} 13. f5 {[%clk 0:02:30]}  cxd4 {[%clk 0:02:32]} 14. fxe6 {[%clk 0:02:24]}  fxe6 {[%clk 0:02:02]} 15. Bxd4 {[%clk 0:02:20]}  Ne5 {[%clk 0:01:47]} 16. Nhf3 {[%clk 0:02:07]}  Neg4 {[%clk 0:01:28]} 17. h3 {[%clk 0:01:53]}  e5 {[%clk 0:01:22]} 18. hxg4 {[%clk 0:01:51]}  exd4 {[%clk 0:01:20]} 19. Nxd4 {[%clk 0:01:47]}  Qe7 {[%clk 0:01:20]} 20. Rf3 {[%clk 0:01:14]}  Nxg4 {[%clk 0:01:20]} 21. Rxf8+ {[%clk 0:00:54]}  Rxf8 {[%clk 0:01:21]} 22. Bxg4 {[%clk 0:00:45]}  Qxe3+ {[%clk 0:01:21]} 23. Kh1 {[%clk 0:00:41]}  Qxd4 {[%clk 0:01:22]} 24. Be6+ {[%clk 0:00:34]}  Kh8 {[%clk 0:01:20]} 25. Nf3 {[%clk 0:00:35]}  Qe3 {[%clk 0:01:02]} 26. Bxd5 {[%clk 0:00:18]}  Rf5 {[%clk 0:01:02]} 27. Nh4 {[%clk 0:00:15]}  Qg3 {[%clk 0:00:55]} 28. Nf3 {[%clk 0:00:00]}  Rxf3 {[%clk 0:00:54]} 0-1